Cogmind - Beta 13 @@@ ROGUE MODE // 2024.04.19 @ 04:12:00 Player: Zaros426 Result: Smashed by cave-in Performance ------------- Evolutions (0) 0 Regions Visited (3) 600 Robots Destroyed (49) 245 Value Destroyed (843) 843 Prototype IDs (6) 120 Alien Tech Used (0) 0 Bonus (44) 44 TOTAL SCORE: 1852 Bonus ------- Follower Combat Kills 44 Cogmind --------- Core Integrity 0/250 Matter 207/300 Energy 98/100 System Corruption 5% Temperature Cool (0) Movement Rolling (110) Location -10/Subcaves Parts ------- > --- POWER (1) -------- (None) > --- PROPULSION (2) --- Subdweller Monowheel > --- UTILITY (2) ------ (None) > --- WEAPON (2) ------- Makeshift Sword > --- INVENTORY (5) ---- Medium Storage Unit Hardened Light Armor Plating Splice Drone Bay (6/6) Advanced Beam Cannon Datajack Peak State ------------ > --- POWER ------------ Ion Engine > --- PROPULSION ------- Wheel Wheel > --- UTILITY ---------- Large Storage Unit Splice Drone Bay > --- WEAPON ----------- Advanced Beam Cannon Advanced Beam Cannon > --- INVENTORY -------- Ion Engine Improved Heat Sink Medium Storage Unit Signal Interpreter Terrain Scanner Improved Terrain Scanner Seismic Detector Hardened Light Armor Plating Hardened Light Armor Plating Hardened Light Armor Plating Advanced Beam Cannon Datajack [Rating: 19] Favorites ----------- Power Ion Engine Engine Ion Engine Power Core Light Nuclear Core Propulsion Aluminum Leg Treads Light Treads Leg Aluminum Leg Wheel Wheel Utility Large Storage Unit Device Seismic Detector Storage Large Storage Unit Processor Signal Interpreter Protection Hardened Light Armor Plating Weapon Advanced Beam Cannon Energy Gun EM Pulse Gun Energy Cannon Advanced Beam Cannon Launcher Subdweller Shrapnel Launcher Slashing Weapon Makeshift Sword Build | -11 -10 -10 -10 ------- Run | Yrd Mat Min Sub Slots Evolved . | . . . . Power . | . . . . Propulsion . | . . . . Utility . | . . . . Weapon . | . . . . Parts Attached 42 | 9 9 10 14 Power 5 | 1 1 1 2 Engine 4 | 1 1 1 1 Core 1 | . . . 1 Reactor . | . . . . Propulsion 13 | 4 1 4 4 Treads 1 | 1 . . . Leg 7 | 2 1 2 2 Wheel 5 | 1 . 2 2 Hover . | . . . . Flight . | . . . . Utility 17 | 2 5 5 5 Device 5 | 1 . 2 2 Storage 6 | 1 4 . 1 Processor 2 | . 1 1 . Hackware . | . . . . Protection 4 | . . 2 2 Artifact . | . . . . Weapon 7 | 2 2 . 3 Energy Gun 2 | 2 . . . Energy Cannon 3 | . 2 . 1 Ballistic Gun . | . . . . Ballistic Cannon . | . . . . Launcher 1 | . . . 1 Special Weapon . | . . . . Impact Weapon . | . . . . Slashing Weapon 1 | . . . 1 Piercing Weapon . | . . . . Special Melee Weapon . | . . . . Unidentified Prototypes 2 | . 1 1 . Parts Lost 15 | . 1 3 11 Power 2 | . . . 2 Propulsion 7 | . . 3 4 Utility 2 | . . . 2 Weapon 4 | . 1 . 3 Highest Loss Streak 6 | . 1 2 6 To Critical Strikes . | . . . . Average Slot Usage (%) 94 | . 99 95 85 Engine 11 | . 14 14 3 Core 2 | . . . 10 Leg 19 | . 28 16 14 Wheel 6 | . . 7 10 Device 5 | . 10 1 5 Storage 12 | . 14 14 9 Processor 3 | . 3 . 6 Protection 6 | . . 12 3 Energy Gun 5 | . 17 . . Energy Cannon 19 | . 9 28 15 Slashing Weapon 1 | . . . 4 Naked Turns . | . . . . Heaviest Build 38 | 15 34 38 37 Greatest Support 20 | 20 20 20 20 Greatest Overweight (x) 12 | . 1 12 4 Average Overweight (x) . | . . 1 . Largest Inventory Capacity 15 | 8 15 15 15 Average Capacity 12 | 7 10 15 9 Most Carried 14 | 2 12 14 13 Average Carried 8 | . 5 12 8 Final Capacity 15 | 8 15 15 5 Final Carried 12 | 1 12 12 5 Class Distribution -------------------- 85% | Mutant 14% | Scavenger-Mutant Dominant Class ---------------- Mutant | -10/Materials Mutant | -10/Mines Scavenger-Mutant | -10/Subcaves Resources | -11 -10 -10 -10 ----------- Run | Yrd Mat Min Sub Matter Collected 722 | 290 124 136 172 Remotely . | . . . . Salvage Created 1521 | 307 539 412 263 Parts 111 | 25 29 41 16 Haulers Intercepted 2 | . 2 . . Recyclers Shooed 1 | . 1 . . Parts Field Recycled . | . . . . Retrieved Matter . | . . . . Parts Self-Destructed 6 | . . . 6 Prevented . | . . . . Kills | -11 -10 -10 -10 ------- Run | Yrd Mat Min Sub Combat Hostiles Destroyed 20 | . 4 11 5 Melee 1 | . . . 1 Cannons 16 | . 1 11 4 AOE 2 | . 2 . . Classes Destroyed 11 | 3 4 2 2 Worker 9 | 2 3 4 . Builder 2 | . . 2 . Tunneler 8 | 8 . . . Hauler 2 | . 2 . . Recycler 3 | 1 2 . . Operator 1 | . 1 . . Turret 2 | . . . 2 Watcher 2 | . 2 . . Swarmer 6 | . . 6 . Grunt 9 | . 4 5 . Subdweller 5 | . . . 5 Best Kill Streak 5 | 5 3 2 2 Combat Bots Only 2 | . 2 2 2 Max Kills in Single Turn 2 | 2 2 2 1 Gunslinging . | . . . . Exploded 2 | . 2 . . Melee 1 | . . . 1 Uniques/NPCs Destroyed . | . . . . Combat | -11 -10 -10 -10 -------- Run | Yrd Mat Min Sub Hostile Shots Fired 112 | . 10 60 42 Missed 21 | . 4 9 8 Damage Taken 1710 | 75 169 584 882 Core 267 | . 19 74 174 Absorbed by Shields . | . . . . Core Remaining (%) 100 | 100 . . . Volleys Fired 126 | 18 33 31 44 Largest 2 | 2 2 2 2 Hottest 136 | 80 136 136 136 Shots Fired 221 | 36 64 61 60 Gun 88 | 36 52 . . Cannon 127 | . 12 61 54 Launcher 6 | . . . 6 Special . | . . . . Kinetic 6 | . . . 6 Thermal 127 | . 12 61 54 Explosive . | . . . . Electromagnetic 88 | 36 52 . . Robot Hit Streak 14 | 6 6 5 14 Robot Miss Streak 4 | 2 4 2 2 Penetration Max . | . . . . Secondary Targets . | . . . . Shots Hit Robots 127 | 20 35 32 40 Core Hits 59 | 12 16 19 12 Critical Kills . | . . . . Critical Parts Destroyed . | . . . . Critical Strikes 1 | 1 . . . Corrupt 1 | 1 . . . Melee Attacks 3 | . . . 3 Impact . | . . . . Slashing 3 | . . . 3 Piercing . | . . . . Sneak Attacks . | . . . . Combat Hostiles . | . . . . Follow-up Attacks . | . . . . Damage Inflicted 2568 | 383 627 714 844 Guns 685 | 269 416 . . Cannons 1600 | . 81 714 805 Explosions 244 | 114 130 . . Melee 39 | . . . 39 Ramming . | . . . . Kinetic . | . . . . Thermal 1844 | 114 211 714 805 Explosive . | . . . . Electromagnetic 685 | 269 416 . . Impact . | . . . . Slashing 39 | . . . 39 Piercing . | . . . . Highest Corruption 3 | . 3 3 3 Average Corruption 2 | . 2 3 3 Corruption Purged . | . . . . Corruption Blocked . | . . . . Effects 49 | . 5 25 19 Message Errors 12 | . 1 6 5 Matter Fused 10 | . . 6 4 Heat Flow Errors 7 | . 1 4 2 Energy Discharges 4 | . . 3 1 Parts Fused 2 | . . 2 . Data Loss (minor) 7 | . 2 3 2 Data Loss (major) 3 | . 1 . 2 Misfires 3 | . . . 3 Weapon Failures 1 | . . 1 . Overload Shots . | . . . . Overflow Damage 33 | 2 . 2 29 Projectiles 3 | . . 2 1 Explosions 30 | 2 . . 28 Melee . | . . . . Knockbacks . | . . . . Impact . | . . . . Kinetic . | . . . . Secondary . | . . . . Self-Inflicted Damage 275 | 76 85 . 114 Shots 7 | 2 2 . 3 Rammed . | . . . . Targets Rammed . | . . . . Kicked . | . . . . Crushed . | . . . . Highest Temperature 470 | 90 443 470 271 Average Temperature 112 | 41 74 153 71 Received Heat Transfer 360 | . 51 303 6 Effects 8 | . 2 5 1 Shutdowns 2 | . 1 1 . Energy Bleed 3 | . . 2 1 Matter Decay 1 | . 1 . . Damage (minor) 2 | . . 2 . Siege Activations . | . . . . Robots Corrupted 1 | . 1 . . Combat Hostiles 1 | . 1 . . Parts Fried 5 | . 5 . . Impact Corruptions . | . . . . Robots Melted . | . . . . Combat Hostiles . | . . . . Parts Melted 8 | . 1 4 3 Heat Transferred 3136 | 150 248 1295 1443 Parts Sabotaged . | . . . . Parts Stolen . | . . . . Parts Stripped . | . . . . Power Chain Reactions 5 | 3 2 . . Alert | -11 -10 -10 -10 ------- Run | Yrd Mat Min Sub Peak Influence 208 | 55 145 208 . Initial 35 | . 35 13 . Average 38 | 25 43 37 . Maximum Alert Level 1 | . . 1 . Low Security (%) 97 | 100 100 96 . Level 1 2 | . . 3 . Level 2 . | . . . . Level 3 . | . . . . Level 4 . | . . . . Level 5 . | . . . . High Security . | . . . . Max Security . | . . . . Squads Dispatched 2 | . 2 . . Investigation 1 | . 1 . . Extermination . | . . . . Reinforcement 1 | . 1 . . Assault . | . . . . Garrison . | . . . . Intercept . | . . . . Searches Triggered . | . . . . Construction Impeded . | . . . . Haulers Reinforced . | . . . . Active Scanning Responses . | . . . . Cargo Convoy Interrupts . | . . . . Stealth | -11 -10 -10 -10 --------- Run | Yrd Mat Min Sub Distress Signals 2 | . 1 1 . Communications Jammed . | . . . . Distress Signals . | . . . . Times Spotted 58 | . 8 12 38 Peak Tracking Total 6 | . 2 3 6 Tactical Retreats 4 | . 1 1 2 Traps | -11 -10 -10 -10 ------- Run | Yrd Mat Min Sub Traps Triggered 3 | . 3 . . Indirectly . | . . . . Trap Hack Attempts . | . . . . Triggered . | . . . . Disarmed . | . . . . Reprogrammed . | . . . . Reused . | . . . . Traps Extracted . | . . . . Installed . | . . . . Triggered . | . . . . Machines | -11 -10 -10 -10 ---------- Run | Yrd Mat Min Sub Machines Disabled 6 | . 1 2 3 Max in Single Turn 2 | . 1 1 2 Machines Repaired . | . . . . Machines Dismantled . | . . . . Machines Sabotaged . | . . . . Overloaded Fab Kills . | . . . . Hacking | -11 -10 -10 -10 --------- Run | Yrd Mat Min Sub Machines Accessed 6 | . 5 1 . Terminals 5 | . 5 . . Fabricators . | . . . . Repair Stations . | . . . . Recycling Units . | . . . . Scanalyzers . | . . . . Garrison Access . | . . . . Total Hacks 12 | . 11 1 . Successful 7 | . 6 1 . Failed 5 | . 5 . . Catastrophic 1 | . 1 . . Database Lockouts . | . . . . Manual . | . . . . Terminals 11 | . 11 . . Fabricators . | . . . . Repair Stations . | . . . . Recycling Units . | . . . . Scanalyzers . | . . . . Garrison Access . | . . . . Terminal Hacks 7 | . 6 1 . Record 1 | . 1 . . Prototype ID Bank 2 | . 2 . . Open Door 1 | . . 1 . Emergency Access Points 1 | . 1 . . Locate Traps 1 | . 1 . . Zone Layout 1 | . 1 . . Fabricator Hacks . | . . . . Repair Station Hacks . | . . . . Recycling Unit Hacks . | . . . . Scanalyzer . | . . . . Garrison Access Hacks . | . . . . Unauthorized Hacks . | . . . . Terminals . | . . . . Fabricators . | . . . . Repair Stations . | . . . . Recycling Units . | . . . . Scanalyzers . | . . . . Garrison Access . | . . . . Data Cores Recovered . | . . . . Used . | . . . . Hacking Detections 4 | . 4 . . Full Trace Events . | . . . . Feedback Events . | . . . . Feedback Blocked . | . . . . Robot Schematics Acquired . | . . . . Robots Built . | . . . . Authchips . | . . . . Time . | . . . . Total Robot Build Rating . | . . . . Part Schematics Acquired . | . . . . Parts Built . | . . . . Authchips . | . . . . Time . | . . . . Total Part Build Rating . | . . . . Parts Repaired . | . . . . Time . | . . . . Parts Recycled . | . . . . Recycled Matter . | . . . . Retrieved Matter . | . . . . Retrieved Components . | . . . . Parts Scanalyzed . | . . . . Part Schematics Acquired . | . . . . Parts Damaged . | . . . . Bothacking | -11 -10 -10 -10 ------------ Run | Yrd Mat Min Sub Used RIF Installer . | . . . . Robots Hacked . | . . . . Non-combat . | . . . . Combat . | . . . . Robot Hacks Applied . | . . . . Relay Couplers Released . | . . . . Fabnet Peak Effective % . | . . . . Robots Rewired . | . . . . Allies Hacked . | . . . . Hacks Repelled . | . . . . Allies | -11 -10 -10 -10 -------- Run | Yrd Mat Min Sub Total Allies 4 | . . 4 . Largest Group 4 | . . 4 4 Highest-Rated Group 71 | . . 71 71 Highest-Rated Ally 31 | . . 31 31 Total Orders . | . . . . Ally Attacks 41 | . . . 41 Total Damage 404 | . . . 404 Kills 4 | . . . 4 Allies Corrupted . | . . . . Allies Melted . | . . . . Intel | -11 -10 -10 -10 ------- Run | Yrd Mat Min Sub Robot Analysis Total . | . . . . Derelict Logs Recovered 2 | . . 2 . Drone Launches . | . . . . Drone Recoveries . | . . . . Exploration | -11 -10 -10 -10 ------------- Run | Yrd Mat Min Sub Turns Passed 4203 | 239 1179 1753 1032 Spaces Moved 2293 | 106 693 874 620 Core 12 | 1 . 1 10 Treads 8 | 8 . . . Legs 1421 | 89 693 385 254 Wheels 852 | 8 . 488 356 Hover . | . . . . Flight . | . . . . Fastest Speed 50 | 50 120 95 95 Average Speed 142 | 119 139 162 121 Slowest Speed 650 | 160 190 650 260 Overloaded Moves . | . . . . Propulsion Burnouts . | . . . . Robots Hopped . | . . . . Cave-ins Triggered 1 | . . . 1 Exploration Rate (%) 55 | 4 95 100 24 Regions Visited 3 Branch Regions 2 Pre-discovered Areas 1 | . . 1 . Known Exits Taken 2 | . 1 1 . Unknown Exits Taken 1 | 1 . . . Scrap Searched 6 | . . 1 5 Spaces Dug 110 | . . . 110 Terrain Destroyed 136 | 12 14 . 110 Melee 2 | . . . 2 Projectile . | . . . . AOE 134 | 12 14 . 108 Terrain Rammed . | . . . . Walls Destroyed . | . . . . Machines Disabled . | . . . . Actions | -11 -10 -10 -10 --------- Run | Yrd Mat Min Sub Total 2990 | 179 835 1139 837 Wait 492 | 42 91 219 140 Move 2290 | 105 692 873 620 Hop . | . . . . Pick Up 23 | 3 8 3 9 Fast Attach 16 | 7 2 3 4 Attach 5 | . . 2 3 Detach . | . . . . Swap 21 | 2 7 5 7 Drop 14 | 2 2 3 7 Fire 126 | 18 33 31 44 Melee 3 | . . . 3 Ram . | . . . . Kick . | . . . . Crush . | . . . . Escape Stasis . | . . . . Rewire . | . . . . Trap . | . . . . Miscellaneous . | . . . . Route ------- -11/Scrapyard -10/Materials (discovered 3 exits: *Mat x2 / *Min) -10/Mines (discovered 4 exits: *Mat x2 / *Exi / *Sub) -10/Subcaves (discovered 2 exits: *Mat / *Rec) History --------- Turn | Location | Event 15 | -11/Scrapyard | Discovered new exit (range 16) 240 | -11/Scrapyard | Entered Materials 317 | -10/Materials | Build established: Mutant 416 | -10/Materials | Discovered new exit (range 7) 654 | -10/Materials | Discovered new exit (range 16) 1103 | -10/Materials | Discovered new exit (range 15) 1152 | -10/Materials | Identified exit to Materials 1408 | -10/Materials | Identified exit to Mines 1419 | -10/Materials | Entered Mines 1908 | -10/Mines | Discovered new exit (range 6) 1969 | -10/Mines | Deemed a non-threat by the Exiles lab entrance 1969 | -10/Mines | Discovered new exit (range 5) 2071 | -10/Mines | Discovered exit to Materials (range 10) 2227 | -10/Mines | Assisted by bots powering up and referring to "LRC-V3" 2692 | -10/Mines | Discovered exit to Materials (range 7) 2693 | -10/Mines | Escorted by a lone wolf Derelict 2895 | -10/Mines | Learned location of Zion (-7) 3025 | -10/Mines | Found the Drone Emporium 3028 | -10/Mines | Found Prototype Device 3029 | -10/Mines | Identified Splice Drone Bay 3105 | -10/Mines | Identified exit to Subcaves 3128 | -10/Mines | Identified exit to Exiles 3172 | -10/Mines | Entered Subcaves 3172 | -10/Subcaves | Accompanied by 4 allies 3307 | -10/Subcaves | Discovered new exit (range 9) 3320 | -10/Subcaves | Discovered new exit (range 14) 3360 | -10/Subcaves | Identified exit to Recycling 3365 | -10/Subcaves | Lost 3 allies 3392 | -10/Subcaves | Core integrity fell below 50% 3442 | -10/Subcaves | Lost 6 parts (1p2n1u2w) 3471 | -10/Subcaves | Identified exit to Materials 3724 | -10/Subcaves | Build established: Scavenger-Mutant 3824 | -10/Subcaves | Core integrity fell below 20% 3911 | -10/Subcaves | A swath of the cavern ceiling suddenly collapsed 4190 | -10/Subcaves | Ambushed by Subdweller buried in earth 4205 | -10/Subcaves | Crushed by falling debris 4205 | -10/Subcaves | Smashed by cave-in Last Messages --------------- 04088_ Aluminum Leg destroyed. 04088_ Destroyed Aluminum Leg. 04097_ 1Z&V,D27UKI DZGYRSZ8C:<| 04098_ Searching scrap... 04098_ Found Sub. Beam Cannon. 04098_ Found 16 Matter. 04099_ Acquired 16 matter. 04128_ Acquired 15 matter. 04130_ System corrupted: Matter fused (-5). 04131_ Machine disabled. 04155_ System corrupted: Matter fused (-9). 04190_ Lgt. Nuclear Core destroyed. 04190_ Destroyed Lgt. Nuclear Core. 04191_ GV-3QB(R): "ARGHSUB!" 04192_ Sub. Shrapnel Launcher destroyed. 04194_ GV-3QB(R) destroyed. 04205_ The unstable cave ceiling collapses. 04205_ Crushed by falling debris. 04205_ Imp. Terrain Scanner destroyed. 04205_ System corrupted by crushing effect (+2). Map ----- +----------------------------------------------------+ | "###""""## ### ##????#?# # #?#### ### | | """ """####### #?###### ## ### # #? | | " "## ### #?# # ## # ### | | "" #?## ### # #?? | | " ## ##?# ## # #### # ## #?? | | ####" ### # # ###?# ########?? | | #??## " ### # #####???## #???????# | | ##### "" ### "" #???#?# #??????## | | """#### " #?????## #????## | | ] ## ""#### " ##?????## #????# | | # ###### "### " #?????#??###????## | | ##### ## "" " #????????????????## | | "???# < #"" "##??###????????????# | | ### #??### ##" #??## ######????### | | ???##??#?## %## ### #??? ## #????# | | ???? #????## %### #? ##????# #????# | | ???????????## %* #?#; "##?##??????# ###### | | ?????#?#??#### % ###; "[#??#???#### ## # | | ??????????#" & %& &%#####?## # | | ?#????????# ! =!## ### * # | | ??????????# & ## &%& # | | ??????????#" % & ;; # | | ????#?????#" ; ## ## #### | | ????????#?#" "; ###### ### #??? | | ??????????###"">"""""# #### #????####? #?? | | ??????????#?##""# #### #@#?######??????? #? | | ?????????????##### ??##### #???????????? #? | | ??????????????#??? ???????##??????????? ##? | | ?????????????????? ?????????????????? #?? | | ????????????????????????????????????? # ## ##?? | | ???????????????????????????????????? ?#####??? | | ?????????????????????????????????????# ????????? | | ???????????????????? ?????????????????# ?????????? | | ?????????????????????????????????????????????????? | | ?????????????????????????????????? ??????????????? | | ?????????????????????????????????????????????????? | | ?????????????????????????????????????????????????? | | ?????????????????????????????????????????????????? | | ?????????????????????????????????????????????????? | | ?????????????????????????????????????????????????? | | ?????????????????????????????????????????????????? | | ?????????????????????????????????????????????????? | | ?????????????????????????????????????????????????? | | ?????????????????????????????????????????????????? | | ?????????????????????????????????????????????????? | | ?????????????????????????????????????????????????? | | ?????????????????????????????????????????????????? | | ?????????????????????????????????????????????????? | | ?????????????????????????????????????????????????? | | ?????????????????????????????????????????????????? | +----------------------------------------------------+ Best States ------------- Heat Dissipation 25 Energy Generation 18 Energy Capacity 250 Matter Stores 300 Matter Capacity 300 Sight Range 16 Terrain Scan Range 16 Terrain Scan Density 10 Armor Coverage 150 Evasion (%) 55 Recoil Reduction 1 Item Schematics ----------------- None Robot Schematics ------------------ None Fabricated ------------ Nothing Alien Tech Used ----------------- None Achievements -------------- None Challenges ------------ None Game ------ Seed AntigravNeutrinoSplitter Manual? 0 Play Time 00:27:18 Cumulative 58.5 hours Start 2024.04.19 @ 03:46:25 End 2024.04.19 @ 04:12:00 Sessions 1 Manual Loads 0 Difficulty Rogue Special Mode None Game No. 57 Rogue 57 Adventurer 0 Explorer 0 Win Type - Total 0 Types 0/0/0/0/0/0/0/0/0 Lore% 30 Gallery% 47 Achievement% 32 Wizard Run 0 Options --------- Layout 0 ASCII 0 Keyboard 0 Movement Mouse Keybinds 0 Fullscreen 2 Font 24/Smallcaps Map View 183x50 Zoom Use 0% Tactical HUD 1 Map Filters NONE Filters NONE Steam 0 RUN: 4e8d01e0-314f-4e55-b9d7-e893794410b3